bitfinex/quotes_SOLUSD_20220128
["timestamp","ask_amount","ask_price","bid_price","bid_amount"]
[1643371569151,6.0,89.109,88.99,13.51]
[1643371569356,3.07839473,89.107,88.99,13.51]
[1643371569555,42.89427677,89.102,88.99,13.51]
[1643371569755,16.86,89.09,88.99,13.51]
[1643371570156,0.25,89.089,88.99,13.51]
[1643371570353,0.25,89.089,89.0,6.0]
[1643371570552,0.25,89.089,89.0,19.51]
[1643371570973,16.855,89.08,89.008,6.0]
[1643371571152,37.17121187,89.079,89.0,13.51]
[1643371571353,37.17121187,89.079,89.01,6.0]
[1643371571554,0.25,89.078,88.99,13.51]
[1643371572356,0.25,89.078,88.991,0.25]
[1643371573155,16.858,89.07,88.991,0.25]
[1643371574358,16.853,89.09,89.001,112.9]
[1643371574558,16.853,89.09,89.01,13.51]
[1643371574763,0.25,89.089,89.01,13.51]
[1643371575062,0.25,89.089,89.0,6.0]
[1643371575258,0.25,89.089,88.998,6.0]
[1643371575458,0.25,89.089,89.0,6.0]
[1643371575860,49.02884024,89.095,89.0,6.0]
[1643371576060,49.02884024,89.095,88.989,45.162]
[1643371576260,125.70928117,89.094,88.99,0.25]
[1643371576660,12.55928117,89.093,88.99,0.25]
[1643371576860,0.25,89.092,88.99,0.25]
[1643371577060,42.47030817,89.079,88.99,0.25]
[1643371577259,0.25,89.078,88.989,45.162]
[1643371578682,0.25,89.078,88.99,0.25]
[1643371578884,0.25,89.078,88.989,45.162]
[1643371579085,16.859,89.07,88.941,46.2126]
[1643371579285,0.25,89.069,88.96,13.51]
[1643371579486,125.70928117,89.069,88.96,13.51]
[1643371579687,128.66597259,89.069,88.96,13.51]
[1643371579889,128.66597259,89.069,88.941,46.2126]
[1643371579890,37.17028495,89.068,88.941,46.2126]
[1643371580086,112.9,89.067,88.941,46.2126]
[1643371580289,112.9,89.057,88.941,46.2126]
[1643371580487,16.869,89.05,88.94,13.51]
[1643371580986,116.10669142,89.049,88.94,13.51]
[1643371581186,128.66597259,89.049,88.94,13.51]
[1643371581388,2.95669142,89.048,88.94,13.51]
[1643371581587,15.51597259,89.048,88.94,13.51]
[1643371581787,113.15,89.047,88.94,13.51]
[1643371581987,128.66597259,89.047,88.94,13.51]
[1643371582189,15.51597259,89.046,88.94,13.51]
[1643371582388,0.25,89.045,88.941,0.25]
[1643371582589,15.76597259,89.045,88.94,13.51]
[1643371582792,12.55928117,89.044,88.94,13.51]
[1643371582991,15.51597259,89.044,88.94,13.51]
[1643371583189,3.20669142,89.043,88.94,13.51]
[1643371583490,48.68110469,89.042,88.94,13.51]
[1643371583691,112.9,89.041,88.912,112.9]
[1643371583891,128.66597259,89.041,88.922,6.0]
[1643371584090,19.82869142,89.04,88.922,6.0]
[1643371584390,3.20669142,89.039,88.922,6.0]
[1643371584590,37.42028495,89.039,88.922,6.0]
[1643371584790,15.51597259,89.038,88.923,0.25]
[1643371585089,16.874,89.01,88.923,0.25]
[1643371585292,45.09951842,89.009,88.923,0.25]
[1643371586989,16.87,89.0,88.923,0.25]
[1643371587191,0.25,88.999,88.922,6.0]
[1643371588391,16.87,89.0,88.923,0.25]
[1643371588593,16.867,89.02,88.93,6.0]
[1643371588790,129.7186,89.069,88.94,13.51]
[1643371589190,6.0,89.059,88.95,6.0]
[1643371589392,12.55928117,89.068,88.96,13.51]
[1643371589591,38.23401602,89.067,88.96,13.51]
[1643371589790,12.55928117,89.058,88.96,13.51]
[1643371590191,38.36527249,89.049,88.96,13.51]
[1643371591092,163.82455366,89.049,88.96,13.51]
[1643371591292,163.82455366,89.049,88.95,6.0]
[1643371591494,163.82455366,89.049,88.951,6.0]
[1643371591893,0.25,89.048,88.952,0.25]
[1643371592393,0.25,89.048,88.95,6.0]
[1643371592594,12.80928117,89.048,88.95,6.0]
[1643371592893,2.95669142,89.047,88.95,6.0]
[1643371593294,12.80928117,89.046,88.95,6.0]
[1643371593495,12.80928117,89.046,88.95,19.51]
[1643371593695,15.51597259,89.045,88.95,13.51]
[1643371593895,0.25,89.044,88.95,13.51]
[1643371594194,12.55928117,89.044,88.95,13.51]
[1643371594394,38.36527249,89.049,88.951,0.25]
[1643371594598,38.36527249,89.049,88.96,6.0]
[1643371594794,38.36527249,89.049,88.961,0.25]
[1643371594996,38.36527249,89.049,88.96,19.51]
[1643371595196,50.92455366,89.049,88.96,19.51]
[1643371595597,0.25,89.048,88.96,19.51]
[1643371595794,0.25,89.048,88.96,13.51]
[1643371595997,12.55928117,89.047,88.96,13.51]
[1643371596396,0.25,89.046,88.96,13.51]
[1643371596798,12.55928117,89.045,88.96,13.51]
[1643371596997,15.51597259,89.045,88.96,13.51]
[1643371597197,3.20669142,89.044,88.96,13.51]
[1643371597397,15.76597259,89.044,88.96,13.51]
[1643371597698,112.9,89.042,88.931,24.3317]
[1643371597998,112.9,89.04,88.941,6.0]
[1643371598201,16.868,89.02,88.941,6.0]
[1643371598396,46.00729199,89.019,88.941,6.0]
[1643371598596,56.226,89.04,88.95,6.0]
[1643371598797,23.2753,89.066,88.96,13.51]
[1643371599097,12.55928117,89.067,88.97,6.0]
[1643371599300,12.55928117,89.067,88.971,0.25]
[1643371599697,41.18606951,89.066,88.97,13.51]
[1643371600098,41.58681762,89.049,88.97,13.51]
[1643371601703,0.25,89.048,88.97,13.51]
[1643371602501,16.863,89.05,88.971,0.25]
[1643371602801,16.858,89.07,88.971,0.25]
[1643371603000,16.858,89.07,88.98,6.0]
[1643371603202,2.95669142,89.107,88.99,13.51]
[1643371603404,2.95669142,89.107,88.992,112.9]
[1643371603600,2.95669142,89.107,89.002,6.0]
[1643371603601,37.98601462,89.106,89.002,6.0]
[1643371603803,0.25,89.105,89.003,0.25]
[1643371604000,0.25,89.105,89.002,6.0]
[1643371604200,40.42426289,89.089,89.01,6.0]
[1643371604401,0.25,89.088,89.01,6.0]
[1643371605101,0.25,89.088,89.004,6.0]
[1643371605303,0.25,89.088,89.01,13.51]
[1643371605901,0.25,89.088,89.011,0.25]
[1643371606103,16.857,89.08,89.02,6.0]
[1643371606300,0.25,89.079,89.021,0.25]
[1643371606501,0.25,89.079,89.02,6.0]
[1643371607103,43.1058142,89.069,89.02,6.0]
[1643371607309,0.25,89.068,89.02,6.0]
[1643371607607,0.25,89.068,89.01,6.0]
[1643371607808,0.25,89.068,89.011,0.25]
[1643371611912,0.25,89.068,89.001,0.25]
[1643371612339,0.25,89.068,89.0,13.51]
[1643371612340,16.859,89.06,89.0,13.51]
[1643371612539,16.859,89.06,88.993,22.8992]
[1643371612742,0.25,89.059,88.994,0.25]
[1643371613940,0.25,89.059,88.992,0.25]
[1643371614440,0.25,89.059,88.99,13.51]
[1643371614842,2.95669142,89.058,88.99,13.51]
[1643371615041,2.95669142,89.058,88.97,13.51]
[1643371615042,6.0,89.048,88.97,13.51]
[1643371615242,42.56948511,89.047,88.961,6.0]
[1643371615444,42.81948511,89.047,88.961,6.0]
[1643371615643,42.81948511,89.047,88.95,37.4961]
[1643371615842,112.9,89.046,88.952,0.25]
[1643371616143,42.81948511,89.047,88.952,0.25]
[1643371616542,42.81948511,89.047,88.95,37.4961]
[1643371617645,42.81948511,89.047,88.961,6.0]
[1643371617846,42.81948511,89.047,88.97,13.51]
[1643371618244,42.81948511,89.047,88.971,0.25]
[1643371619848,42.81948511,89.047,88.97,13.51]
[1643371620046,42.81948511,89.047,88.961,6.0]
[1643371620253,42.81948511,89.047,88.95,37.4961]
[1643371620254,42.56948511,89.047,88.95,37.4961]
[1643371621250,42.56948511,89.047,88.952,0.25]
[1643371621854,0.25,89.046,88.952,0.25]
[1643371622452,16.865,89.03,88.952,0.25]
[1643371622653,45.13627037,89.029,88.952,0.25]
[1643371622853,45.38627037,89.029,88.952,0.25]
[1643371623656,45.13627037,89.029,88.952,0.25]
[1643371623856,45.13627037,89.029,88.952,113.15]
[1643371624754,45.13627037,89.029,88.953,2.05567798]
[1643371625155,45.13627037,89.029,88.963,6.0]
[1643371625454,45.13627037,89.029,88.964,0.25]
[1643371625654,45.13627037,89.029,88.97,6.0]
[1643371625855,45.13627037,89.029,88.971,0.25]
[1643371627055,45.13627037,89.029,88.961,0.25]
[1643371627459,56.213,89.06,88.961,0.25]
[1643371627655,56.196,89.08,88.97,6.0]
[1643371627854,56.196,89.08,88.98,13.51]
[1643371628055,6.0,89.07,88.98,13.51]
[1643371628256,56.196,89.08,88.981,0.25]
[1643371628454,79.8416,89.119,88.981,0.25]
[1643371628455,3.07839473,89.113,88.99,6.0]
[1643371628658,3.07839473,89.129,89.0,13.51]
[1643371628862,3.07839473,89.149,89.001,113.15]
[1643371629056,3.11661845,89.149,89.02,168.91]
[1643371629258,16.6645,89.21,89.03,13.51]
[1643371629259,3.07839473,89.16,89.03,13.51]
[1643371629456,47.95775336,89.159,89.03,19.51]
[1643371629658,3.11638648,89.158,89.031,6.25]
[1643371629855,0.25,89.157,89.041,112.9]
[1643371630059,0.25,89.157,89.05,13.51]
[1643371630258,3.11638648,89.156,89.051,25.0578]
[1643371630456,0.25,89.157,89.05,13.51]
[1643371630457,0.25,89.155,89.05,13.51]
[1643371630655,3.07839473,89.148,89.0,168.91]
[1643371630857,35.3419214,89.142,89.012,6.0]
[1643371631056,3.11055919,89.141,89.013,6.0]
[1643371631258,6.0,89.132,89.01,13.51]
[1643371631658,6.31725061,89.131,89.01,13.51]
[1643371631859,3.11055919,89.13,89.01,13.51]
[1643371632059,6.06725061,89.13,89.01,13.51]
[1643371632261,46.49789403,89.128,89.01,13.51]
[1643371632458,111.9,89.123,89.01,13.51]
[1643371632660,116.01055919,89.122,89.01,13.51]
[1643371632858,3.11055919,89.121,89.01,13.51]
[1643371633058,3.11055919,89.121,89.003,48.4895]
[1643371633261,0.25,89.12,89.003,48.4895]
[1643371633460,3.11055919,89.119,89.003,48.4895]
[1643371633660,116.01055919,89.119,89.003,48.4895]
[1643371633860,3.36055919,89.118,89.003,48.4895]
[1643371634061,116.01055919,89.117,89.003,48.4895]
[1643371634261,3.36055919,89.116,89.003,48.4895]
[1643371634565,6.0,89.106,89.003,48.4895]
[1643371634761,16.858,89.09,89.004,0.25]
[1643371635061,112.9,89.088,89.004,0.25]
[1643371635263,0.25,89.087,89.004,0.25]
[1643371636464,113.15,89.088,89.004,0.25]
[1643371636664,16.859,89.08,89.004,0.25]
[1643371636864,0.25,89.079,89.004,0.25]
[1643371637672,16.858,89.07,89.004,0.25]
[1643371637964,16.858,89.07,89.003,48.4895]
[1643371637965,47.71259149,89.069,89.003,48.4895]
[1643371638165,47.71259149,89.069,88.968,2.05567798]
[1643371638366,47.71259149,89.069,88.97,13.51]
[1643371638566,24.5957,89.068,88.97,13.51]
[1643371638765,0.25,89.067,88.97,13.51]
[1643371639570,56.21,89.06,88.971,0.25]
[1643371639767,0.25,89.059,88.971,0.25]
[1643371639966,16.862,89.05,88.97,13.51]
[1643371640168,44.17724117,89.049,88.97,13.51]
[1643371640366,44.42724117,89.049,88.97,13.51]
[1643371641371,44.42724117,89.049,88.971,0.25]
[1643371641971,44.42724117,89.049,88.95,6.0]
[1643371642175,44.42724117,89.049,88.95,19.51]
[1643371642369,44.42724117,89.049,88.951,0.25]
[1643371643370,112.9,89.048,88.951,0.25]
[1643371643770,0.25,89.047,88.951,0.25]
[1643371644871,0.25,89.048,88.95,13.51]
[1643371645069,0.25,89.048,88.892,17.0007]
[1643371645070,16.87,89.01,88.93,13.51]
[1643371645271,44.8368714,89.009,88.92,13.51]
[1643371645471,112.9,89.008,88.91,13.51]
[1643371645678,112.9,89.008,88.904,6.0]
[1643371645872,0.25,89.007,88.904,6.0]
[1643371646091,3.20669142,89.007,88.904,6.0]
[1643371646291,16.875,88.99,88.904,6.0]
[1643371646493,38.34148501,88.989,88.9,13.51]
[1643371646693,38.59148501,88.989,88.9,13.51]
[1643371647592,16.875,88.98,88.9,13.51]
[1643371647793,16.875,88.98,88.901,2.30567798]
[1643371648198,38.34148501,88.989,88.901,2.30567798]
[1643371648793,0.25,88.988,88.901,2.30567798]
[1643371649193,0.25,88.988,88.911,6.0]
[1643371649392,0.25,88.988,88.912,0.25]
[1643371649594,0.25,88.988,88.91,19.51]
[1643371649897,0.25,88.988,88.91,13.51]
[1643371650095,16.874,88.98,88.91,13.51]
[1643371650293,0.25,88.979,88.894,46.469]
[1643371651193,16.88,88.96,88.89,13.51]
[1643371651397,48.07826344,88.959,88.89,13.51]
[1643371651795,48.07826344,88.959,88.87,13.51]
[1643371652196,2.95669142,88.958,88.87,13.51]
[1643371652399,0.25,88.957,88.87,13.51]
[1643371652602,38.91765999,88.939,88.87,13.51]
[1643371652798,0.25,88.938,88.87,13.51]
[1643371653197,0.25,88.938,88.871,0.25]
[1643371653803,0.25,88.938,88.87,13.51]
[1643371653999,0.25,88.938,88.799,4.49319279]
[1643371654000,16.884,88.93,88.837,2.05567798]
[1643371654201,16.884,88.93,88.832,47.3645]
[1643371654500,116.10669142,88.929,88.832,47.3645]
[1643371654903,2.95669142,88.928,88.832,47.3645]
[1643371655101,44.19136998,88.918,88.832,47.3645]
[1643371655302,0.25,88.917,88.832,47.3645]
[1643371655701,37.74686116,88.899,88.832,47.3645]
[1643371655902,0.25,88.898,88.833,0.25]
[1643371656101,0.25,88.917,88.833,0.25]
[1643371656301,0.25,88.917,88.834,2.05567798]
[1643371656702,0.25,88.917,88.835,0.25]
[1643371657102,0.25,88.917,88.844,6.0]
[1643371657303,0.25,88.918,88.845,0.25]
[1643371657505,36.98174766,88.919,88.845,8.05567798]
[1643371657703,36.98174766,88.919,88.845,2.05567798]
[1643371657904,36.98174766,88.919,88.846,2.30567798]
[1643371658104,36.98174766,88.919,88.85,16.21]
[1643371658307,36.98174766,88.919,88.851,0.25]
[1643371658507,16.888,88.91,88.851,0.25]
[1643371658907,0.25,88.909,88.851,0.25]
[1643371659509,0.25,88.909,88.86,6.0]
[1643371659708,36.98174766,88.919,88.861,0.25]
[1643371659911,0.25,88.918,88.851,0.25]
[1643371661512,0.25,88.918,88.85,16.21]
[1643371663311,0.25,88.918,88.851,0.25]
[1643371664513,0.25,88.918,88.85,16.21]
[1643371664812,0.25,88.918,88.851,0.25]
[1643371665016,0.25,88.918,88.851,2.30567798]
[1643371665216,0.25,88.918,88.852,2.05567798]
[1643371665413,0.25,88.918,88.853,0.25]
[1643371665814,36.98174766,88.919,88.854,2.05567798]
[1643371666013,36.98174766,88.919,88.864,6.0]
[1643371666414,36.98174766,88.919,88.865,0.25]
[1643371666819,36.98174766,88.919,88.865,2.30567798]
[1643371667119,36.98174766,88.919,88.865,0.25]
[1643371667316,56.273,88.96,88.866,2.05567798]
[1643371667516,66.261,88.98,88.881,112.9]
[1643371667720,16.21,89.03,88.883,112.9]
[1643371667917,9.18,89.02,88.89,6.0]
[1643371668118,9.18,89.02,88.9,218.81]
[1643371668317,37.93042112,89.019,88.91,16.21]
[1643371668524,37.93042112,89.019,88.911,6.0]
[1643371668717,37.93042112,89.019,88.92,6.0]
[1643371668920,37.93042112,89.019,88.93,16.21]
[1643371669119,37.93042112,89.019,88.94,6.0]
[1643371669322,37.93042112,89.019,88.95,16.21]
[1643371669719,37.93042112,89.019,88.94,6.0]
[1643371669919,37.93042112,89.019,88.931,6.0]
[1643371670119,16.869,89.01,88.931,6.25]
[1643371670323,0.25,89.009,88.931,6.0]
[1643371670520,0.25,89.009,88.94,6.0]
[1643371670918,0.25,89.009,88.93,16.21]
[1643371671723,0.25,89.018,88.93,16.21]
[1643371672120,42.80226458,88.999,88.93,16.21]
[1643371672345,0.25,88.998,88.94,6.0]
[1643371672547,0.25,88.998,88.93,16.21]
[1643371672548,0.25,88.998,88.921,46.4906]
[1643371672745,0.25,88.998,88.92,16.21]
[1643371672949,0.25,88.998,88.9,16.21]
[1643371673146,0.25,88.998,88.88,16.21]
[1643371673147,16.879,88.96,88.88,16.21]
[1643371673345,35.85591639,88.959,88.88,16.21]
[1643371673746,35.60591639,88.959,88.881,2.30567798]
[1643371673947,35.60591639,88.959,88.881,115.20567798]
[1643371674149,1.55471795,89.021,88.891,6.0]
[1643371674348,0.25,89.02,88.9,16.21]
[1643371674548,0.25,89.02,88.91,6.0]
[1643371674747,16.871,89.01,88.92,16.21]
[1643371675147,36.98012948,89.009,88.92,16.21]
[1643371675349,49.17012948,89.009,88.92,16.21]
[1643371675749,56.247,89.0,88.92,16.21]
[1643371676149,16.874,88.98,88.92,16.21]
[1643371676348,46.58068374,88.979,88.92,16.21]
[1643371680856,46.58068374,88.979,88.921,0.25]
[1643371681057,46.08068374,88.979,88.921,0.25]
[1643371681458,16.876,88.97,88.92,16.21]
[1643371682259,0.25,88.969,88.92,16.21]
[1643371684259,0.25,88.969,88.901,45.4696]
[1643371684459,0.25,88.969,88.902,0.25]
[1643371684660,16.878,88.96,88.902,0.25]
[1643371684859,39.9313749,88.959,88.901,45.4696]
[1643371687464,16.88,88.95,88.901,45.4696]
[1643371687661,16.88,88.95,88.9,16.21]
[1643371687861,0.25,88.949,88.9,16.21]
[1643371688266,16.88,88.95,88.9,16.21]
[1643371688469,39.6813749,88.959,88.9,16.21]
[1643371688667,56.248,89.0,88.901,113.15]
[1643371688866,0.25,88.999,88.901,162.07607798]
[1643371689069,0.25,88.999,88.911,6.0]
[1643371689266,0.25,88.999,88.92,16.21]
[1643371689666,16.873,88.99,88.92,16.21]
[1643371689871,0.25,88.989,88.92,16.21]
[1643371690999,16.876,88.97,88.92,16.21]
[1643371691171,35.90944025,88.969,88.92,16.21]
[1643371691373,36.15944025,88.969,88.92,16.21]
[1643371691770,35.90944025,88.969,88.92,16.21]
[1643371692674,16.878,88.96,88.92,16.21]
[1643371693273,0.25,88.959,88.92,16.21]
[1643371693575,16.878,88.96,88.92,16.21]
[1643371693783,0.25,88.959,88.92,16.21]
[1643371694378,16.878,88.96,88.92,16.21]
[1643371694379,16.875,88.98,88.92,16.21]
[1643371694576,56.241,89.01,88.921,0.25]
[1643371694780,1.55471795,89.009,88.921,2.30567798]
[1643371694978,1.55471795,89.018,88.93,6.0]
[1643371695177,1.55471795,89.024,88.94,16.21]
[1643371695373,43.96449209,89.023,88.941,24.2863]
[1643371695774,16.868,89.02,88.941,24.2863]
[1643371696178,0.25,89.019,88.941,24.2863]
[1643371696377,1.55471795,89.034,88.941,24.2863]
[1643371696378,1.55471795,89.034,88.942,114.95567798]
[1643371696578,1.55471795,89.039,88.952,6.0]
[1643371696775,1.55471795,89.051,88.96,218.81]
[1643371696975,1.55471795,89.051,88.97,16.857]
[1643371697176,1.55471795,89.061,88.98,16.21]
[1643371697376,1.55471795,89.061,88.981,48.0702]
[1643371697675,36.61779342,89.074,88.991,6.0]
[1643371697877,1.55471795,89.098,89.0,16.21]
[1643371698076,1.55471795,89.1,89.01,22.849]
[1643371698275,3.10923712,89.132,89.02,16.21]
[1643371698276,1.55471795,89.111,89.02,16.21]
[1643371698497,1.55471795,89.113,89.021,112.9]
[1643371698700,1.55471795,89.114,89.03,6.0]
[1643371698898,1.55471795,89.114,89.04,16.21]
[1643371698899,43.56177308,89.112,89.04,16.21]
[1643371699098,43.56177308,89.112,89.05,6.0]
[1643371699398,0.25,89.111,89.051,0.25]
[1643371699598,43.56177308,89.112,89.051,0.25]
[1643371700499,16.848,89.12,89.051,0.25]
[1643371700998,0.25,89.119,89.051,0.25]
[1643371701500,43.5038146,89.119,89.051,0.25]
[1643371701799,43.2538146,89.119,89.051,0.25]
[1643371702800,0.25,89.118,89.051,0.25]
[1643371704303,0.25,89.118,89.06,6.0]
[1643371704503,0.25,89.118,89.05,16.21]
[1643371704702,42.5038146,89.119,89.03,16.21]
[1643371704902,2.95669142,89.117,89.02,16.21]
[1643371705104,16.858,89.09,88.99,16.21]
[1643371705403,42.82083068,89.089,88.99,16.21]
[1643371705804,42.82083068,89.089,88.991,2.05567798]
[1643371706005,1.55471795,89.125,88.991,114.95567798]
[1643371706202,202.6,89.2,89.01,16.849]
[1643371706203,16.85,89.13,89.01,16.849]
[1643371706407,0.25,89.128,89.02,16.21]
[1643371706604,0.25,89.128,89.021,6.0]
[1643371706805,56.173,89.12,89.03,6.0]
[1643371707005,37.82751551,89.119,89.03,22.21]
[1643371707206,38.07751551,89.119,89.03,22.21]
[1643371707810,38.07751551,89.119,89.031,0.25]
[1643371708709,16.85,89.13,89.031,2.30567798]
[1643371708913,16.85,89.13,89.04,16.844]
[1643371709109,16.843,89.15,89.051,112.9]
[1643371709309,16.843,89.15,89.052,48.8954]
[1643371709510,16.843,89.15,89.062,6.0]
[1643371709711,39.71205761,89.149,89.07,16.21]
[1643371709911,39.71205761,89.149,89.071,0.25]
[1643371710112,0.25,89.148,89.071,0.25]
[1643371710512,0.25,89.148,89.07,16.21]
[1643371711714,0.25,89.148,89.071,112.9]
[1643371711911,0.25,89.148,89.08,6.0]
[1643371712311,0.25,89.148,89.071,0.25]
[1643371712512,0.25,89.148,89.08,6.0]
[1643371712713,0.25,89.148,89.06,16.21]
[1643371713114,39.71205761,89.149,89.06,16.21]
[1643371713414,39.71205761,89.149,89.061,0.25]
[1643371713618,39.71205761,89.149,89.06,16.21]
[1643371713816,39.71205761,89.149,89.053,24.4957]
[1643371714020,39.71205761,89.149,89.06,13.48]
[1643371714620,39.71205761,89.149,89.061,0.25]
[1643371715420,112.9,89.148,89.06,13.48]
[1643371715622,113.15,89.148,89.06,13.48]
[1643371716122,2.95669142,89.147,88.988,17.1456]
[1643371716323,23.3477,89.146,89.02,13.48]
[1643371716524,34.24392013,89.146,89.03,6.0]
[1643371716722,1.55471795,89.143,89.03,6.0]
[1643371717021,1.55471795,89.141,89.01,13.48]
[1643371717249,1.55471795,89.139,89.01,13.48]
[1643371717422,1.55471795,89.137,89.011,0.25]
[1643371717624,0.25,89.136,89.01,13.48]
[1643371717822,1.55471795,89.131,89.01,13.48]
[1643371718022,0.25,89.136,88.98,13.48]
[1643371718023,1.55471795,89.119,88.98,13.48]
[1643371718222,1.55471795,89.113,88.98,13.48]
[1643371718523,0.30646369,89.127,88.98,13.48]
[1643371718524,1.55471795,89.104,88.98,13.48]
[1643371718722,56.203,89.1,88.98,13.48]
[1643371718923,56.203,89.1,88.953,2.05567798]
[1643371718924,16.861,89.09,88.953,2.05567798]
[1643371719129,59.6958623,89.089,88.963,6.0]
[1643371719426,4.51140937,89.088,88.963,6.0]
[1643371719626,112.9,89.079,88.963,6.0]
[1643371719825,0.25,89.078,88.96,13.48]
[1643371720226,11.66119791,89.077,88.96,13.48]
[1643371720429,0.25,89.076,88.96,13.48]
[1643371720634,1.80471795,89.076,88.96,13.48]
[1643371720826,53.22667358,89.075,88.96,13.48]
[1643371721025,112.9,89.069,88.96,13.48]
[1643371721228,112.9,89.059,88.948,47.2436]
[1643371721429,56.228,89.06,88.929,19.92477249]
[1643371721430,112.9,89.057,88.93,13.48]
[1643371721631,112.9,89.057,88.94,6.0]
[1643371721929,112.9,89.055,88.941,23.3062]
[1643371722328,0.25,89.054,88.941,23.3062]
[1643371722628,49.44149246,89.043,88.941,23.3062]
[1643371722827,0.25,89.042,88.941,23.3062]
[1643371723028,113.15,89.042,88.942,0.25]
[1643371724429,0.25,89.042,88.942,0.25]
[1643371725554,0.25,89.042,88.943,2.06372246]
[1643371725951,0.25,89.042,88.944,0.25]
[1643371726354,0.25,89.042,88.945,2.06372246]
[1643371726854,0.25,89.042,88.946,0.25]
[1643371727053,16.867,89.02,88.946,24.3612]
[1643371727254,42.05472326,89.019,88.946,26.42492246]
[1643371727454,41.80472326,89.019,88.946,26.42492246]
[1643371727853,41.80472326,89.019,88.946,26.17492246]
[1643371728253,16.869,89.01,88.946,26.17492246]
[1643371728855,0.25,89.009,88.946,26.17492246]
[1643371729459,16.871,89.0,88.946,24.1112]
[1643371729655,43.55549233,88.999,88.94,13.48]
[1643371729855,43.80549233,88.999,88.94,13.48]
[1643371733065,16.873,88.99,88.922,23.9679]
[1643371733261,0.25,88.989,88.922,23.9679]
[1643371733463,0.25,88.989,88.917,2.05560074]
[1643371734463,16.873,88.99,88.917,2.05560074]
[1643371734862,16.873,88.99,88.917,21.98037323]
[1643371735063,16.873,88.99,88.918,0.25]
[1643371735664,16.873,88.99,88.919,2.05560074]
[1643371735864,16.873,88.99,88.92,0.25]
[1643371736266,0.25,88.989,88.92,0.25]
[1643371736465,16.873,88.99,88.921,21.98037323]
[1643371736668,43.55549233,88.999,88.929,6.0]
[1643371736865,43.55549233,88.999,88.931,6.0]
[1643371737067,43.55549233,88.999,88.93,15.78560074]
[1643371737869,43.55549233,88.999,88.93,15.53560074]
[1643371738069,53.76549233,88.999,88.93,13.48]
[1643371738870,16.873,88.99,88.93,13.48]
[1643371739270,0.25,88.989,88.93,13.48]
[1643371740272,16.875,88.98,88.93,13.48]
[1643371740471,44.24573006,88.979,88.93,13.48]
[1643371740870,0.25,88.978,88.93,13.48]
[1643371742271,44.24573006,88.979,88.93,13.48]
[1643371743772,0.25,88.978,88.93,13.48]
[1643371744773,0.25,88.978,88.904,111.9]
[1643371744774,16.877,88.97,88.904,111.9]
[1643371745371,0.25,88.978,88.904,111.9]
[1643371745372,0.25,88.969,88.904,111.9]